Workbook

Sheet ورقة1
B2: المركز التسويقي لمنتسبي وزارة الداخلية
D6: =SUBTOTAL(9,B:B) -> 38179149 | F6: =SUBTOTAL(9,C:C) ->  | H6: =SUBTOTAL(9,E:E) -> 509885.5
A10: الاسم الكامل | B10: المبلغ الكلي | C10: المبلغ المتبقي | D10: المادة | E10: الاستقطاع الشهري | F10: عدد الأشهر | G10: الدائرة | H10: التاريخ | I10: القسط الأول | J10: القسط الثاني | K10: القسط الثالث
A11: عزيز حامد عبد الباقي عبد العزيز | B11: 5000 | C11: 5000 | D11: تكتك احمر | E11: 500 | F11: =B11/E11 -> 10 | G11: مديرية حماية المنشات | H11: 2018-04-26 | I11: تم التسديد
A12: عدنان نعيم حنا | B12: 6000 | C12: 500 | D12: تكتك احمر | E12: 500 | F12: 12 | G12: مديرية نفط الوسط | H12: 2018-04-26
A13: حسين جبار لعيبي خلف | B13: 660000 | C13: 660 | D13: سبلت 2 طن | E13: 110 | F13: 6 | G13: حرس الحدود | H13: 2018-04-26
A14: ثائر عباس عزيز علي | B14: 1500 | C14: =B14-I14 -> 1500 | D14: سبلت 3 طن | E14: 150 | F14: 10 | G14: الشرطة الاتحادية ف2 | H14: 2018-04-26
A15: زهير ناصر هادي كاظم | B15: 3000 | C15: =B15-I15 -> 3000 | D15: سبلت 3 طن | E15: 300 | F15: 10 | G15: الشرطة الاتحادية فوج المغاوير | H15: 2018-04-26
A16: خالد فاضل علي ديوان الاسدي | B16: 175 | C16: 175 | D16: براد ماء | E16: 44 | F16: 4 | G16: الشرطة الاتحادية فق 1 | H16: 2018-04-26
A17: حسين صالح سويد محمد العبسي | B17: 175 | C17: 175 | D17: براد ماء | E17: 44 | F17: 4 | G17: الشرطة الاتحادية فق1 الفوج الالي | H17: 2018-04-26
A18: زهير ناصر هادي كاظم | B18: 1500 | C18: 1500 | D18: سبلت 3 طن | E18: 150 | F18: 10 | G18: الشرطة الاتحادية فوج المغاوير | H18: 2018-04-26
A19: مجدي عباس فاضل عباس | B19: 1540 | C19: 1540 | D19: سبلت 3 طن | E19: 220 | F19: 7 | G19: الشرطة الاتحادية ل 3 ف3 | H19: 2018-04-28
A20: حسين جبار لعيبي خلف | B20: 700000 | C20: 700000 | D20: سبلت 2 طن | E20: 100 | F20: 7 | G20: حرس الحدود | H20: 2018-04-28
A21: حسين جبار لعيبي خلف | B21: 175 | C21: 175 | D21: براد ماء | E21: 44 | F21: 4 | G21: حرس الحدود | H21: 2018-04-28
A22: سعد عزيز حمودي كاظم السعيدي | B22: 1500 | C22: 1500 | D22: سبلت 3 طن | E22: 150 | F22: 10 | G22: مديرية شؤون السيطرات | H22: 2018-04-28
A23: سعد عزيز حمودي كاظم السعيدي | B23: 800 | C23: 800 | D23: سبلت 2 طن | E23: 100 | F23: 8 | G23: مديرية شؤون السيطرات | H23: 2018-04-28
A24: نصير صادق جعفر عوده علي | B24: 300000 | C24: 300000 | D24: طباخ 4 شعلة | E24: 50 | F24: 6 | G24: الشرطة الاتحادية فق 6 | H24: 2018-04-28
A25: نصير صادق جعفر عوده علي | B25: 250000 | C25: 250000 | D25: ميز طعام | E25: 50 | F25: 5 | G25: الشرطة الاتحادية فق 6 | H25: 2018-04-28
A26: محمد مهدي سليم حسين الزيداوي | B26: 3000000 | C26: 3000000 | D26: سبلت 3 طن | E26: 300 | F26: 10 | G26: حماية المنشأت | H26: 2018-04-28
A27: بشير سلمان شكاصي | B27: 3000000 | C27: 3000000 | D27: سبلت 3 طن | E27: 300 | F27: 10 | G27: حماية المنشأت | H27: 2018-04-28
A28: علي اسماعيل عبد الحسن | B28: 770000 | C28: 770000 | D28: ثلاجة 18 | E28: 110 | F28: 7 | G28: حرس الحدود | H28: 2018-04-28
A29: حيدر محمد رشيد محمد | B29: 900000 | C29: 900000 | D29: سبلت 2 طن | E29: 100 | F29: 9 | G29: حرس الحدود | H29: 2018-04-28
A30: حسين علي حسين غضبان | B30: 250 | D30: طباخ 4 شعلة | E30: 50 | F30: 6 | G30: مديرية الإدارة والميرة ش.أ | H30: 2018-04-28 | I30: تم التسديد
A31: نصير صادق جعفر عوده علي | B31: 3600 | C31: 3600 | D31: سبلت 2 طن | E31: 400 | F31: 9 | G31: الشرطة الاتحادية فق 6 | H31: 2018-04-28
A32: علاء ستار شاوي حمود | B32: 440000 | D32: سبلت 2 طن | E32: 110 | F32: 7 | G32: مديرية شرطة النجدة | H32: 2018-04-28 | I32: تم التسديد | J32: تم التسديد
A33: علاء ستار شاوي حمود | B33: 200000 | D33: بلازمة 43 | E33: 100 | F33: 5 | G33: مديرية شرطة النجدة | H33: 2018-04-28 | I33: تم التسديد | J33: تم التسديد
A34: عبدالرزاق مطرود زناد سعيد | B34: 180000 | C34: 180000 | D34: براد ماء | E34: 45 | F34: 4 | G34: الشرطة الاتحادية فق 1 ل3 ف 2 | H34: 2018-04-28
A35: محمد سعدي عبد الرسول نجم | B35: 1750000 | C35: 1750000 | D35: سبلت 3 طن | E35: 175 | F35: 10 | G35: الشرطة الاتحادية ل 8 ف 2 | H35: 2018-04-28
A36: محمد سعدي عبد الرسول نجم | B36: 600000 | C36: 600000 | D36: طباخ 4 شعلة | E36: 100 | F36: 6 | G36: الشرطة الاتحادية ل 8 ف 2 | H36: 2018-04-28
A37: سيف جعفر جبار عبد رمضان | B37: 600000 | C37: 600000 | D37: ثلاجة 14 | E37: 100 | F37: 6 | G37: الشرطة الاتحادية فق 1 ل2 ف 2 | H37: 2018-04-28
A38: اكرم عباس حسين راضي | B38: 600000 | C38: 600000 | D38: طباخ 5 شعلة | E38: 100 | F38: 6 | G38: الشرطة الاتحادية فق2 ف2 | H38: 2018-04-28
A39: احمد محمد زوبري حمد | B39: 2700 | D39: سبلت 3 طن | E39: 300 | F39: 10 | G39: حماية المنشأت | H39: 2018-04-28 | I39: تم التسديد
A40: احمد محمد زوبري حمد | B40: 450 | D40: طباخ 5 شعلة | E40: 100 | F40: 6 | G40: حماية المنشأت | H40: 2018-04-28 | I40: تم التسديد
A41: محمد عبدالقادر خماس إبراهيم | B41: 1500000 | C41: 1500000 | D41: سبلت 3 طن | E41: 150 | F41: 10 | G41: الشرطة الاتحادية الدعم اللوجستي | H41: 2018-04-28
A42: اياد كايت رحمن عبد | B42: 900 | C42: 900 | D42: سبلت 2 طن | E42: 100 | F42: 9 | G42: الشرطة الاتحادية فق1 ل 3 ف 3 | H42: 2018-04-28
A43: اياد كايت رحمن عبد | B43: 180 | C43: 180 | D43: براد ماء | E43: 45 | F43: 4 | G43: الشرطة الاتحادية فق1 ل 3 ف 3 | H43: 2018-04-28
A44: حيدر علي عبد غافل التميمي | B44: 2975 | D44: سبلت 3 طن | E44: 350 | F44: 10 | G44: حماية المنشأت | H44: 2018-04-28 | I44: تم التسديد
A45: رفعت عيسى حبيب جاسم | B45: 900000 | C45: 900000 | D45: سبلت 2 طن | E45: 100 | F45: 9 | G45: الشرطة الاتحادية مقر القيادة | H45: 2018-04-29
A46: محمد عبد الكريم خلف فرج | B46: 1500000 | C46: 1500000 | D46: سبلت 3 طن | E46: 150 | F46: 10 | G46: الشرطة الاتحادية مقر قيادة الاعلام | H46: 2018-04-29
A47: محمد عبد الكريم خلف فرج | B47: 900000 | C47: 900000 | D47: سبلت 2 طن | E47: 100 | F47: 9 | G47: الشرطة الاتحادية مقر قيادة الاعلام | H47: 2018-04-29
A48: محمد عبد الكريم خلف فرج | B48: 180000 | C48: 180000 | D48: براد ماء | E48: 45 | F48: 4 | G48: الشرطة الاتحادية مقر قيادة الاعلام | H48: 2018-04-29
A49: محمد عبد الكريم خلف فرج | B49: 250 | C49: 250 | D49: شاشة 32 | E49: 50 | F49: 5 | G49: الشرطة الاتحادية مقر قيادة الاعلام | H49: 2018-04-29
A50: ماهر كريم عبد الزهرة رحيمة | B50: 5250000 | C50: 5250000 | D50: سبلت 3 طن | E50: 525 | F50: 10 | G50: شرطة اتحادية النسور | H50: 2018-04-29
A51: باسم محمد كرم عزيز | B51: 700000 | C51: 700000 | D51: غسالة سامسونج | E51: 100 | F51: 7 | G51: الشرطة الاتحادية فق1 ل2 ف 1 | H51: 2018-04-29
A52: باسم محمد كرم عزيز | B52: 600000 | C52: 600000 | D52: شاشة 55 | E52: 100 | F52: 6 | G52: الشرطة الاتحادية فق1 ل2 ف 1 | H52: 2018-04-29
A53: كرار حسن عبد مسلم الربيعي | B53: 600000 | C53: 600000 | D53: بلازمة 55 | E53: 100 | F53: 6 | G53: عمليات الوزارة | H53: 2018-04-29
A54: كرار حسن عبد مسلم الربيعي | B54: 450 | C54: 450 | D54: بلازمة 43 | E54: 90 | F54: 5 | G54: عمليات الوزارة | H54: 2018-04-29
A55: عزيز حامد عبد الباقي عبد العزيز | B55: 510 | D55: سبلت 2 طن | E55: 100 | F55: 7 | G55: مديرية حماية المنشات | H55: 2018-04-29 | I55: تم التسديد
A56: فريد مجيد احمد حسين | B56: 900000 | C56: 900000 | D56: بلازمة 43 | E56: 180 | F56: 5 | G56: الشرطة الاتحادية ف 1 | H56: 2018-04-29
A57: عقبة مطلك بدر لازم الساعدي | B57: 2400 | D57: غرفة نوم | E57: 300 | F57: 10 | G57: مديرية حماية السفارات | H57: 2018-04-29 | I57: تم التسديد
A58: عقبة مطلك بدر لازم الساعدي | B58: 270 | D58: شاشة 34 | E58: 90 | F58: 5 | G58: مديرية حماية السفارات | H58: 2018-04-29 | I58: تم التسديد
A59: عقبة مطلك بدر لازم الساعدي | B59: 50 | D59: طباخ 4 شعلة | E59: 50 | F59: 6 | G59: مديرية حماية السفارات | H59: 2018-04-29 | I59: تم التسديد
A60: عقبة مطلك بدر لازم الساعدي | B60: 150 | D60: ميز طعام | E60: 50 | F60: 5 | G60: مديرية حماية السفارات | H60: 2018-04-29 | I60: تم التسديد
A61: علي حسين زيدان مطلك الجابري | B61: 4500000 | C61: 4500000 | D61: سبلت 2 طن | E61: 500 | F61: 9 | G61: فوج طوارئ بغداد | H61: 2018-04-29
A62: حيدر رحيم حسين كاظم العامري | B62: 1275 | D62: سبلت 3 طن | E62: 150 | F62: 10 | G62: مديرية حماية المنشات | H62: 2018-04-29 | I62: تم التسديد
A63: حيدر رحيم حسين كاظم العامري | B63: 750 | D63: سبلت 2 طن | E63: 100 | F63: 9 | G63: مديرية حماية المنشات | H63: 2018-04-29 | I63: تم التسديد
A64: علي شهيد غانم بريسم البلحاوي | B64: 1275 | D64: سبلت 3 طن | E64: 150 | F64: 10 | G64: مديرية حماية المنشات | H64: 2018-04-29 | I64: تم التسديد
A65: علي شهيد غانم بريسم البلحاوي | B65: 750 | D65: سبلت 2 طن | E65: 100 | F65: 9 | G65: مديرية حماية المنشات | H65: 2018-04-29 | I65: تم التسديد
A66: علي شهيد غانم بريسم البلحاوي | B66: 225 | D66: مبردة إيراني | E66: 50 | F66: 6 | G66: مديرية حماية المنشات | H66: 2018-04-29 | I66: تم التسديد
A67: ابراهيم محمد شوكت عبد الحميد | B67: 1275 | D67: سبلت 3 طن | E67: 150 | F67: 10 | G67: مديرية حماية المنشات | H67: 2018-04-29 | I67: تم التسديد
A68: ابراهيم محمد شوكت عبد الحميد | B68: 750 | D68: سبلت 2 طن | E68: 100 | F68: 9 | G68: مديرية حماية المنشات | H68: 2018-04-29 | I68: تم التسديد
A69: وسام علي إبراهيم حمود الجنابي | B69: 2250 | D69: سبلت 2 طن | E69: 300 | F69: 9 | G69: حماية المنشات والشخصيات | H69: 2018-04-29 | I69: تم التسديد
A70: عماد موحي حسن هوزي | B70: 900000 | C70: 900000 | D70: سبلت 2 طن | E70: 100 | F70: 9 | G70: حماية السفارات | H70: 2018-04-29
A71: عقيل ستار شاوي حمود الساعدي | B71: 400000 | D71: ثلاجة 16 | E71: 100 | F71: 7 | G71: مديرية شرطة النجدة | H71: 2018-04-29 | I71: تم التسديد | J71: تم التسديد
A72: فواز موفق شرقي رزوقي | B72: 700000 | C72: 700000 | D72: سبلت 2 طن | E72: 100 | F72: 7 | G72: الشرطة الاتحادية اللواء الالي | H72: 2018-04-29
A73: حيدر هادي سلمان عبد الرزاق | B73: 700000 | C73: 700000 | D73: سبلت 2 طن | E73: 100 | F73: 7 | G73: مديرية شرطة ديالى | H73: 2018-04-29
A74: علي حسن عبود جارالله الخفاجي | B74: 3500 | C74: 3500 | D74: سبلت 3 طن | E74: 350 | F74: 10 | G74: قيادة شرطة بغداد | H74: 2018-04-29
A75: طاهر عطاء تقي عبود السراي | B75: 550 | D75: ثلاجة 18 | E75: 110 | F75: 7 | G75: شرطة اتحادية فق 1 | H75: 2018-04-29 | I75: تم التسديد | J75: تم التسديد
A76: خليل إبراهيم جخيور علي فرحان | B76: 600 | D76: سبلت 2 طن | E76: 400 | F76: 9 | G76: حماية الشخصيات | H76: 2018-04-29 | I76: تم التسديد
A77: خليل إبراهيم جخيور علي فرحان | B77: 550 | C77: =B77-I77 ->  | D77: غسالة سامسونج | E77: 100 | F77: 7 | G77: حماية الشخصيات | H77: 2018-04-29 | I77: تم التسديد
A78: محمد مهدي سليم حسين | B78: 1540 | C78: 1540 | D78: ثلاجة 18 | E78: 220 | F78: 7 | G78: حماية الشخصيات | H78: 2018-04-29
A79: سيف سعدي عبد جاسم | B79: 900 | C79: 900 | D79: سبلت 2 طن | E79: 100 | F79: 9 | G79: مكتب الوزير التدقيق المركزي | H79: 2018-04-29
A80: سيف سعدي عبد جاسم | B80: 500 | C80: 500 | D80: بلازمة 43 | E80: 100 | F80: 5 | G80: مكتب الوزير التدقيق المركزي | H80: 2018-04-29
A81: حسين جبار لعيبي خلف | B81: 1000 | C81: 1000 | D81: شاشة 43 | E81: 200 | F81: 5 | G81: حرس الحدود | H81: 2018-04-29
A82: حيدر محمد كاظم حسن العامري | B82: 3000 | C82: 3000 | D82: سبلت 3 طن | E82: 300 | F82: 10 | G82: حماية المنشأت | H82: 2018-04-29
A83: عزيز عبدالحمزة عزيز محمد | B83: 4500 | C83: 4500 | D83: تكتك احمر | E83: 410 | F83: 11 | G83: فوج طوارئ بغداد | H83: 2018-04-29
A84: سعد عبدالرزاق مجيد حبيب | B84: 750 | C84: 750 | D84: مبردة إيراني | E84: 150 | F84: 5 | G84: حماية المنشأت | H84: 2018-04-29
A85: سعد عبدالرزاق مجيد حبيب | B85: 700 | C85: 700 | D85: ثلاجة 16 | E85: 100 | F85: 7 | G85: حماية المنشأت | H85: 2018-04-29
A86: سعد عبدالرزاق مجيد حبيب | B86: 180 | C86: 180 | D86: براد ماء | E86: 45 | F86: 4 | G86: حماية المنشأت | H86: 2018-04-29
A87: احمد حسين جلوب دلي اللامي | B87: 1200 | C87: 1200 | D87: شاشة 55 | E87: 200 | F87: 6 | G87: الشرطة الاتحادية القيادة | H87: 2018-04-29
A88: محمد عبد الزهرة محيسن حلو | B88: 450 | D88: طباخ 5 شعلة | E88: 100 | F88: 6 | G88: حماية المنشأت | H88: 2018-04-29 | I88: تم التسديد
A89: علي عبد العزيز فليح حسن | B89: 1000 | C89: 1000 | D89: شاشة 43 | E89: 200 | F89: 5 | G89: الشرطة الاتحادية فق 6 | H89: 2018-04-29
A90: فراس علي حسين علي العبيدي | B90: 1500 | C90: 1500 | D90: سبلت 3 طن | E90: 150 | F90: 10 | G90: قيادة شرطة صلاح الدين | H90: 2018-04-29
A91: فراس علي حسين علي العبيدي | B91: 770 | C91: 770 | D91: ثلاجة 18 | E91: 110 | F91: 7 | G91: قيادة شرطة صلاح الدين | H91: 2018-04-29
A92: فراس علي حسين علي العبيدي | B92: 500 | C92: 500 | D92: شاشة 32 | E92: 100 | F92: 5 | G92: قيادة شرطة صلاح الدين | H92: 2018-04-29
A93: فراس علي حسين علي العبيدي | B93: 770 | C93: 770 | D93: ثلاجة 18 | E93: 110 | F93: 7 | G93: قيادة شرطة صلاح الدين | H93: 2018-04-29
A94: صالح خلف حمود جليهم | B94: 4500 | C94: 4500 | D94: سبلت 3 طن | E94: 450 | F94: 10 | G94: الشرطة الاتحادية مقر القيادة | H94: 2018-04-29
A95: علي شرقي جبر حسن اللامي | B95: 3000 | C95: 3000 | D95: سبلت 3 طن | E95: 300 | F95: 10 | G95: قيادة شرطة بغداد شؤون السيطرات | H95: 2018-04-29
A96: عباس علي عويلي برهان | B96: 600 | C96: 600 | D96: شاشة 32 | E96: 100 | F96: 6 | G96: الشرطة الاتحادية فق 6 | H96: 2018-04-29
A97: حسام خزعل فيصل عبود | B97: 4500 | C97: 4500 | D97: تكتك احمر | E97: 450 | F97: 10 | G97: فوج طوارئ بغداد | H97: 2018-04-29
A98: صدام فاضل قاسم | B98: 3150 | C98: 3150 | D98: سبلت 3 طن | E98: 350 | F98: 10 | G98: حرس الحدود | H98: 2018-04-29
A99: علي مهدي رحيمه فهد | B99: 3500 | C99: 3500 | D99: سبلت 3 طن | E99: 350 | F99: 10 | G99: الشرطة الاتحادية فق1 | H99: 2018-04-29
A100: علي مهدي رحيمه فهد | B100: 700 | C100: 700 | D100: غسالة سامسونج | E100: 100 | F100: 7 | G100: الشرطة الاتحادية فق1 | H100: 2018-04-29
A101: سعد عزيز حمودي كاظم السعيدي | B101: 1750 | C101: 1750 | D101: سبلت 3 طن | E101: 175 | F101: 10 | G101: شؤن السيطرات | H101: 2018-04-29
A102: سعد عزيز حمودي كاظم السعيدي | B102: 600 | C102: 600 | D102: شاشة 55 | E102: 100 | F102: 6 | G102: شؤن السيطرات | H102: 2018-04-29
A103: احمد كنكر مجور ساري | B103: 3500 | C103: 3500 | D103: تكتك اصفر | E103: 350 | F103: 10 | G103: الشرطة الاتحادية فق 1 | H103: 2018-04-29
A104: فريد مجيد احمد حسين | B104: 1750 | C104: 1750 | D104: سبلت 3 طن | E104: 175 | F104: 10 | G104: الشرطة الاتحادية فوج المغاوير | H104: 2018-04-29
A105: حسين موسى عبد المهدي | B105: 1750 | C105: 1750 | D105: سبلت 3 طن | E105: 175 | F105: 10 | G105: وكالة شؤون الشرطة | H105: 2018-04-29
A106: حسين موسى عبد المهدي | B106: 1750 | C106: 1750 | D106: سبلت 3 طن | E106: 175 | F106: 10 | G106: وكالة شؤون الشرطة | H106: 2018-04-29
A107: حسين موسى عبد المهدي | B107: 1750 | C107: 1750 | D107: سبلت 3 طن | E107: 175 | F107: 10 | G107: وكالة شؤون الشرطة | H107: 2018-04-29
A108: صاحب محسن راضي كعيد | B108: 200 | D108: ميز طعام | E108: 50 | F108: 5 | G108: حماية المنشأت | H108: 2018-04-29 | I108: تم التسديد
A109: خالد وليد عبدالله أنور | B109: 300 | C109: 300 | D109: مبردة إيراني | E109: 50 | F109: 6 | G109: الشرطة الاتحادية فق 1 ف 1 | H109: 2018-04-29
A110: خالد وليد عبدالله أنور | B110: 600 | C110: 600 | D110: شاشة 55 | E110: 100 | F110: 6 | G110: الشرطة الاتحادية فق 1 ف 1 | H110: 2018-04-29
A111: رضا فرحان جعفر محمد | B111: 3500 | C111: 3500 | D111: سبلت 3 طن | E111: 350 | F111: 10 | G111: شؤن السيطرات | H111: 2018-04-29
A112: سيف سعدي عبد جاسم | B112: 600 | C112: 600 | D112: شاشة 55 | E112: 100 | F112: 6 | G112: مكتب الوزير التدقيق المركزي | H112: 2018-04-29
A113: بشير عبدالله محمد خليل | B113: 10000 | C113: 10000 | D113: عرض زواج | E113: 500 | F113: 20 | G113: الشرطة الاتحادية فق 2 ل8 ف 2 | H113: 2018-04-29
A114: محمد سعدي عبد الرسول نجم | B114: 600 | C114: 600 | D114: شاشة 55 | E114: 100 | F114: 6 | G114: الشرطة الاتحادية فق 1 ل 8 ف 2 | H114: 2018-04-29
A115: محمد سعدي عبد الرسول نجم | B115: 800 | C115: 800 | D115: غسالة سامسونج | E115: 100 | F115: 8 | G115: الشرطة الاتحادية فق 1 ل 8 ف 2 | H115: 2018-04-29
A116: حسين جبار لعيبي خلف | B116: 600 | C116: 600 | D116: شاشة 55 | E116: 100 | F116: 6 | G116: حرس الحدود | H116: 2018-04-29
A117: احمد حسين جلوب دلي | B117: 600 | C117: 600 | D117: شاشة 55 | E117: 100 | F117: 6 | G117: الشرطة الاتحادية القيادة | H117: 2018-05-01
A118: ناطق هاشم مهدي فهد | B118: 3000 | C118: 3000 | D118: سبلت 3 طن | E118: 300 | F118: 10 | G118: الشرطة الاتحادية فق 1 | H118: 2018-05-01
A119: فواز موفق شرقي رزوقي | B119: 180 | C119: 180 | D119: براد ماء | E119: 45 | F119: 4 | G119: الشرطة الاتحادية اللواء الالي | H119: 2018-05-20
A120: فواز موفق شرقي رزوقي | B120: 250 | C120: 250 | D120: ميز طعام | E120: 50 | F120: 5 | G120: الشرطة الاتحادية اللواء الالي | H120: 2018-05-20
A121: صالح خلف حمود جليهم | B121: 450 | C121: 450 | D121: شاشة 55 | E121: 90 | F121: 5 | G121: الشرطة الاتحادية قسم الميرة | H121: 2018-05-21
A122: صاحب محسن راضي كعيد | B122: 332 | D122: طباخ 5 شعلة | E122: 84 | F122: 6 | G122: حماية المنشأت | H122: 2018-05-21 | I122: تم التسديد
A123: قاسم عبد الأمير كاظم عبدالله | B123: 2700 | D123: غرفة نوم | E123: 300 | F123: 10 | G123: الشرطة الاتحادية كتيبة الراجمات | H123: 2018-05-21 | I123: تم التسديد
A124: محمود زرعود سلوم فرحان | B124: 3000 | C124: 3000 | D124: سبلت 3 طن | E124: 300 | F124: 10 | G124: الشرطة الاتحادية فق 1 | H124: 2018-05-21
A125: محمود زرعود سلوم فرحان | B125: 600 | C125: 600 | D125: شاشة 55 | E125: 100 | F125: 6 | G125: الشرطة الاتحادية فق 1 | H125: 2018-05-21
A126: حيدر كوطي ندى الدراجي | B126: 600 | C126: 600 | D126: طباخ 5 شعلة | E126: 100 | F126: 6 | G126: مديرية الشرطة القضائية | H126: 2018-05-21
A127: حيدر كوطي ندى الدراجي | B127: 800 | C127: 800 | D127: غسالة سامسونج | E127: 100 | F127: 8 | G127: مديرية الشرطة القضائية | H127: 2018-05-21
A128: حيدر كوطي ندى الدراجي | B128: 900 | C128: 900 | D128: سبلت 2 طن | E128: 100 | F128: 9 | G128: مديرية الشرطة القضائية | H128: 2018-05-19
A129: محمد جنيد معروف مرهون حسن | B129: 3500 | C129: 3500 | D129: سبلت 3 طن | E129: 350 | F129: 10 | G129: الشرطة الاتحادية فق 1 ف3 | H129: 2018-05-21
A130: محمد نصيف كرين لفتة | B130: 3500 | C130: 3500 | D130: سبلت 3 طن | E130: 350 | F130: 10 | G130: الشرطة الاتحادية فق 1ل 2 ف 2 | H130: 2018-05-19
A131: علي حسين محي رسن | B131: 3500 | C131: 3500 | D131: سبلت 3 طن | E131: 350 | F131: 10 | G131: الشرطة الاتحادية فق1 ل 3 ف 3 | H131: 2018-05-19
A132: مشتاق داوود سليمان مجيد | B132: 3500 | C132: 3500 | D132: سبلت 3 طن | E132: 350 | F132: 10 | G132: حرس الحدود | H132: 2018-05-21
A133: علي شرقي جبر حسن | B133: 1750 | C133: 1750 | D133: سبلت 3 طن | E133: 175 | F133: 10 | G133: شؤون السيطرات | H133: 2018-05-21
A134: مشتاق داوود سليمان مجيد | B134: 1750 | C134: 1750 | D134: سبلت 3 طن | E134: 175 | F134: 10 | G134: حرس الحدود | H134: 2018-05-21
A135: اياد سامي فياض حاتم | B135: 4500 | C135: 4500 | D135: تكتك احمر | E135: 450 | F135: 10 | G135: فوج طوارئ بغداد | H135: 2018-05-21
A136: محمد قاسم عبد الحسن مهدي | B136: 3150 | D136: سبلت 3 طن | E136: 450 | F136: 10 | G136: فرقة التدخل السريع | H136: 2018-05-19 | I136: تم التسديد | J136: تم التسديد
A137: احمد مانع فلاح ايلوي | B137: 1800 | D137: سبلت 3 طن | E137: 300 | F137: 9 | G137: فرقة التدخل السريع | H137: 2018-05-19 | I137: تم التسديد | J137: تم التسديد
A138: احمد مانع فلاح ايلوي | B138: 500 | D138: غسالة سامسونج | E138: 100 | F138: 8 | G138: فرقة التدخل السريع | H138: 2018-05-21 | I138: تم التسديد | J138: تم التسديد
A139: احمد مانع فلاح ايلوي | B139: 400 | D139: ثلاجة 16 | E139: 100 | F139: 7 | G139: فرقة التدخل السريع | H139: 2018-05-19 | I139: تم التسديد | J139: تم التسديد
A140: احمد مانع فلاح ايلوي | B140: 300 | D140: شاشة 32 | E140: 100 | F140: 6 | G140: فرقة التدخل السريع | H140: 2018-05-19 | I140: تم التسديد | J140: تم التسديد
A141: عباس شاكر كشكول عبد | B141: 2700 | C141: =B141-I141 -> 2700 | D141: سبلت 2 طن | E141: 300 | F141: 9 | G141: شرطة نفط الوسط | H141: 2018-05-21
A142: عباس شاكر كشكول عبد | B142: 700 | C142: 700 | D142: ثلاجة 16 | E142: 100 | F142: 7 | G142: شرطة نفط الوسط | H142: 2018-05-19
A143: عباس شاكر كشكول عبد | B143: 800 | C143: 800 | D143: غسالة سامسونج | E143: 100 | F143: 8 | G143: شرطة نفط الوسط | H143: 2018-05-19
A144: حسين جبار لعيبي خلف | B144: 300 | C144: 300 | D144: شاشة 32 | E144: 50 | F144: 6 | G144: حرس الحدود | H144: 2018-05-21
A145: مسلم عقيل عبد دويج | B145: 700 | D145: سبلت 2 طن | E145: 100 | F145: 9 | G145: مكتب الوزير التدخل السريع | H145: 2018-05-19 | I145: تم التسديد | J145: تم التسديد
A146: ضياء عبد الكاظم محمد سلمان | B146: 600 | C146: 600 | D146: ثلاجة 14 | E146: 100 | F146: 6 | G146: شرطة اتحادية مقر فق 2 | H146: 2018-05-19
A147: ضياء عبد الكاظم محمد سلمان | B147: 300 | C147: 300 | D147: طباخ 4 شعلة | E147: 50 | F147: 6 | G147: شرطة اتحادية مقر فق 2 | H147: 2018-05-21
A148: ضياء عبد الكاظم محمد سلمان | B148: 180 | C148: 180 | D148: براد ماء | E148: 45 | F148: 4 | G148: شرطة اتحادية مقر فق 2 | H148: 2018-05-19
A149: علاوي عبود محمد لفتة | B149: 3500 | C149: 3500 | D149: تكتك اصفر | E149: 350 | F149: 10 | G149: فوج طوارئ بغداد | H149: 2018-05-21
A150: كنعان نظام الدين عسكر | B150: 800 | C150: 800 | D150: غسالة سامسونج | E150: 100 | F150: 8 | G150: مديرية التدقيق المركزي | H150: 2018-05-21
A151: ضياء عبد الكاظم محمد سلمان | B151: 600 | C151: 600 | D151: شاشة 55 | E151: 100 | F151: 6 | G151: شرطة اتحادية مقر فق 2 | H151: 2018-05-19
A152: ضياء عبد الكاظم محمد سلمان | B152: 150 | C152: 150 | D152: ميز بلازما | E152: 50 | F152: 6 | G152: شرطة اتحادية مقر فق 2 | H152: 2018-05-19
A153: علاء عامر صالح محمد | B153: 300 | C153: 300 | D153: شاشة 32 | E153: 50 | F153: 6 | G153: مديرية شرطة صلاح الدين | H153: 2018-05-21
A154: احمد حسين جلوب دلي | B154: 1200 | C154: 1200 | D154: شاشة 55 | E154: 200 | F154: 6 | G154: الشرطة الاتحادية القيادة | H154: 2018-05-19
A155: مرتضى عبد الزهرة عبدالله شناوة | B155: 4500 | C155: 4500 | D155: تكتك احمر | E155: 450 | F155: 10 | G155: شرطة اتحادية فق1 | H155: 2018-05-21
A156: مرتضى عبد الزهرة عبدالله شناوة | B156: 300 | C156: 300 | D156: شاشة 32 | E156: 50 | F156: 6 | G156: شرطة اتحادية فق1 | H156: 2018-05-19
A157: سعد عزيز حمودي كاظم السعيدي | B157: 800 | C157: 800 | D157: غسالة سامسونج | E157: 100 | F157: 8 | G157: مديرية شؤون السيطرات | H157: 2018-05-19
A158: احمد سليم هاتو سلمان | B158: 3500 | C158: 3500 | D158: تكتك اصفر | E158: 350 | F158: 10 | G158: شرطة اتحادية البيجية | H158: 2018-05-19
A159: نصر عبد الرزاق كرم ناصح | B159: 600 | C159: 600 | D159: شاشة 55 | E159: 100 | F159: 6 | G159: شرطة اتحادية فق 3 | H159: 2018-05-19
A160: عماد موحي حسن هوزي | B160: 800 | C160: 800 | D160: غسالة سامسونج | E160: 100 | F160: 8 | G160: حماية المنشأت | H160: 2018-05-21
A161: علي نجاح عبدالله علي | B161: 2400 | C161: 2400 | D161: شاشة 55 | E161: 400 | F161: 6 | G161: شرطة اتحادية فق 4 | H161: 2018-05-19
A162: عقيل لازم خلف ثامر السوداني | B162: 225 | D162: شاشة 32 | E162: 50 | F162: 6 | G162: حماية المنشأت | H162: 2018-05-19 | I162: تم التسديد
A163: فواز موفق شرقي رزوقي | B163: 600 | C163: 600 | D163: بلازمة 55 | E163: 100 | F163: 6 | G163: الشرطة الاتحادية اللواء الالي | H163: 2018-05-21
A164: احمد جميل طارش اللامي | B164: 600 | C164: 600 | D164: بلازمة 55 | E164: 100 | F164: 6 | G164: مديرية الاتصالات | H164: 2018-05-19
A165: عدنان كاظم حمزة حبيب | B165: 1200 | C165: 1200 | D165: بلازمة 32 عدد 4 | E165: 200 | F165: 6 | G165: شرطة اتحادية فق 1 المقر | H165: 2018-05-21
A166: وسام علي إبراهيم حمود الجنابي | B166: 450 | D166: بلازمة 32 | E166: 100 | F166: 6 | G166: حماية المنشات والشخصيات | H166: 2018-05-19 | I166: تم التسديد
A167: مجدي عباس فاضل عباس | B167: 1200 | C167: 1200 | D167: ثلاجة 14 عدد 2 | E167: 200 | F167: 6 | G167: الشرطة الاتحادية ل 3 ف3 | H167: 2018-05-21
A168: هيثم جاسم محمد حسن | B168: 3000 | C168: 2550 | D168: غرفة نوم | E168: 300 | F168: 10 | G168: الشرطة الاتحادية مديرية الرواتب | H168: 2018-05-19 | I168: 450
A169: حيدر رزوقي فرج محمد | B169: 700 | C169: 700 | D169: ثلاجة 16 | E169: 100 | F169: 7 | G169: شرطة اتحادية فق 2 فوج المغاوير | H169: 2018-05-21
A170: حيدر رزوقي فرج محمد | B170: 500 | C170: 500 | D170: طباخ 5 شعلة | E170: 100 | F170: 5 | G170: شرطة اتحادية فق 2 فوج المغاوير | H170: 2018-05-19
A171: حيدر رزوقي فرج محمد | B171: 300 | C171: 300 | D171: غسالة | E171: 50 | F171: 6 | G171: شرطة اتحادية فق 2 فوج المغاوير | H171: 2018-05-21
A172: حيدر رزوقي فرج محمد | B172: 300 | C172: 300 | D172: شاشة 32 | E172: 50 | F172: 6 | G172: شرطة اتحادية فق 2 فوج المغاوير | H172: 2018-05-19
A173: زهير ناصر هادي كاظم | B173: 600 | C173: 600 | D173: ثلاجة 16 | E173: 100 | F173: 6 | G173: شرطة اتحادية فوج المغاوير | H173: 2018-05-19
A174: زهير ناصر هادي كاظم | B174: 180 | C174: 180 | D174: براد ماء | E174: 45 | F174: 4 | G174: شرطة اتحادية فوج المغاوير | H174: 2018-05-21
A175: رامي رزاق ضيدان جاسم | B175: 750 | D175: سبلت 2 طن | E175: 100 | F175: 9 | G175: حماية المنشأت | H175: 2018-05-21 | I175: تم التسديد
A176: رامي رزاق ضيدان جاسم | B176: 450 | D176: ثلاجة 14 | E176: 100 | F176: 6 | G176: حماية المنشأت | H176: 2018-05-19 | I176: تم التسديد
A177: رامي رزاق ضيدان جاسم | B177: 225 | D177: غسالة | E177: 50 | F177: 6 | G177: حماية المنشأت | H177: 2018-05-19 | I177: تم التسديد
A178: رامي رزاق ضيدان جاسم | B178: 350 | D178: طباخ 5 شعلة | E178: 100 | F178: 5 | G178: حماية المنشأت | H178: 2018-05-19 | I178: تم التسديد
A179: حيدر محمد كاظم حسن العامري | B179: 600 | C179: 500 | D179: ثلاجة 14 | E179: 100 | F179: 6 | G179: حماية المنشأت | H179: 2018-05-19 | I179: 100
A180: وليد خالد رشيد محمد | B180: 4500 | C180: 4500 | D180: تكتك احمر | E180: 450 | F180: 10 | G180: شرطة اتحادية وحدة منتسبي الجرحى | H180: 2018-05-21
A181: حسن موسى عبد المهدي | B181: 9000 | C181: 9000 | D181: تكتك احمر عدد 2 | E181: 900 | F181: 10 | G181: شرطة بغداد | H181: 2018-05-19
A182: طارق هاشم حميد سالم | B182: 250 | C182: 250 | D182: ميز طعام | E182: 50 | F182: 5 | G182: شرطة اتحادية مقر القيادة | H182: 2018-05-21
A183: حسين ورود خزعل الساعدي | B183: 3500 | C183: 3500 | D183: تكتك اصفر | E183: 350 | F183: 10 | G183: شؤن السيطرات | H183: 2018-05-19
A184: علي طه حميد عباس | B184: 1500 | C184: 1500 | D184: تخم قنفات | E184: 150 | F184: 10 | G184: مدبربة شرطة بغداد | H184: 2018-05-21
A185: فراس مصطفى كامل الربيعي | B185: 4500 | C185: 4500 | D185: تكتك احمر | E185: 450 | F185: 10 | G185: فوج طوارئ بغداد | H185: 2018-05-19
A186: محمد عبد القادر خماس | B186: 600 | C186: 600 | D186: ثلاجة 14 | E186: 100 | F186: 6 | G186: شرطة اتحادية مقر القيادة | H186: 2018-05-21
A187: علي عبود محمد علي | B187: 4500 | C187: 4500 | D187: تكتك احمر | E187: 450 | F187: 10 | G187: شرطة اتحادية مقر الفرقة الأولى | H187: 2018-05-19
A188: حسين علي عودة راشد | B188: 4500 | C188: 4500 | D188: تكتك احمر | E188: 450 | F188: 10 | G188: شؤون السيطرات | H188: 2018-05-19
A189: يوسف عبدالله حسن ناصر | B189: 225 | D189: غسالة | E189: 50 | F189: 6 | G189: فرقة الرد السريع | H189: 2018-05-21 | I189: تم التسديد
A190: يوسف عبدالله حسن ناصر | B190: 15 | D190: بنكة شحن | E190: 30 | F190: 2 | G190: فرقة الرد السريع | H190: 2018-05-19 | I190: تم التسديد
A191: قصي صلال فالح موسى | B191: 3000 | C191: 3000 | D191: غرفة نوم | E191: 300 | F191: 10 | G191: مديرية الاستخبارات ومكافحة الإرهاب | H191: 2018-05-22
A192: قصي صلال فالح موسى | B192: 450 | C192: 450 | D192: مجمدة 13 | E192: 90 | F192: 5 | G192: مديرية الاستخبارات ومكافحة الإرهاب | H192: 2018-05-19
A193: أسامة فرات طلب محمد | B193: 25 | C193: 25 | D193: خلاط | E193: 25 | F193: 1 | G193: حرس الحدود | H193: 2018-05-22
A194: عمر هيثم بهاء الدين حسين | B194: 300 | D194: مجمدة 13 | E194: 100 | F194: 4 | G194: مقر الفرقة الأولى الشرطة الاتحادية | H194: 2018-05-19 | I194: تم التسديد
A195: احمد عبد الزهرة احسان لازم | B195: 800 | C195: 800 | D195: سبلت 2 طن | E195: 100 | F195: 8 | G195: شؤون السيطرات | H195: 2018-05-22
A196: احمد عبد الزهرة احسان لازم | B196: 450 | C196: 450 | D196: مجمدة 13 | E196: 90 | F196: 5 | G196: شؤون السيطرات | H196: 2018-05-22
A197: سارة علي ذياب صالح | B197: 650 | D197: سبلت 2 طن | E197: 100 | F197: 8 | G197: حماية المنشأت | H197: 2018-05-19 | I197: تم التسديد
A198: رامي رزاق ضيدان جاسم | B198: 125 | D198: طباخ | E198: 50 | F198: 4 | G198: حماية المنشأت | H198: 2018-05-22 | I198: تم التسديد
A199: رامي رزاق ضيدان جاسم | B199: 650 | D199: سبلت 2 طن | E199: 100 | F199: 8 | G199: حماية المنشأت | H199: 2018-05-19 | I199: تم التسديد
A200: حسام حسين شوحي مطشر | B200: 500 | C200: 500 | D200: ثلاجة 14 | E200: 100 | F200: 5 | G200: ف1 ل2 فق2 ش.أ | H200: 2018-05-22
A201: حسام حسين شوحي مطشر | B201: 500 | C201: 500 | D201: طباخ 4 شعلة | E201: 100 | F201: 5 | G201: ف1 ل2 فق2 ش.أ | H201: 2018-05-19
A202: علاء ستار شاوي حمود | B202: 125 | D202: غسالة حوضين | E202: 50 | F202: 5 | G202: شرطة النجدة | H202: 2018-05-19 | I202: تم التسديد | J202: تم التسديد
A203: عقيل ستار شاوي حمود الساعدي | B203: 100 | D203: غسالة حوضين | E203: 50 | F203: 5 | G203: شرطة النجدة | H203: 2018-05-22 | I203: تم التسديد | J203: تم التسديد
A204: اوس خالد صالح سعيد | B204: 800 | C204: 800 | D204: سبلت 2 طن | E204: 100 | F204: 8 | G204: الشرطة الاتحادية مديرية التدريب | H204: 2018-05-19
A205: اوس خالد صالح سعيد | B205: 180 | C205: =B205-I205 -> 180 | D205: براد ماء | E205: 45 | F205: 4 | G205: الشرطة الاتحادية مديرية التدريب | H205: 2018-05-22
A206: علي مهدي حسن لفتة | B206: 275 | D206: ثلاجة 14 | E206: 100 | F206: 5 | G206: قوات رد السريع | H206: 2018-05-19 | I206: تم التسديد | J206: تم التسديد
A207: صفاء حسين علوان حمود | B207: 800 | C207: 800 | D207: سبلت 2 طن | E207: 100 | F207: 8 | G207: العاب الشرطة | H207: 2018-05-22
... 1796 more rows
